[Event "44th Chess Olympiad Open 2022"]
[Site "Chennai"]
[Date "2022.08.01"]
[Round "4.14"]
[White "Svane, Rasmus"]
[Black "Kanyamarala, Tarun"]
[Result "1/2-1/2"]
[WhiteElo "2649"]
[BlackElo "2379"]
[Annotator "TA"]
[PlyCount "88"]
[EventDate "2022.??.??"]
[TimeControl "60"]

{[%evp 11,88,25,29,30,35,34,39,22,56,57,56,45,50,57,39,20,25,0,0,0,0,0,0,0,0,0,
0,0,6,0,0,0,0,0,0,0,3,0,0,0,0,0,0,0,88,88,85,68,65,0,0,-14,-21,-190,-190,-190,
-189,-189,-186,-177,0,0,0,-115,-24,-24,-24,-474,-291,-291,-285,-275,-257,-258,
0,-223,0,-244,0]} 1. Nf3 {[%emt 0:00:04]} d5 {[%emt 0:00:26]} 2. g3 {[%emt 0:
00:00]} Nc6 {[%emt 0:00:29]} 3. d4 {[%emt 0:00:28]} Bf5 {[%emt 0:00:20]} 4. Bg2
{[%emt 0:00:21]} Nb4 {[%emt 0:00:31]} 5. Na3 {[%emt 0:00:26]} e6 {[%emt 0:00:
00]} 6. O-O {[%emt 0:00:40]} Nf6 {[%emt 0:03:16]} 7. c3 {[%emt 0:01:25] D02:1
d4 d5 2 Nf3 sidelines, including 2...Nf6 3 g3 and 2...Nf6 3 Bf4.} Nc6 {[%emt 0:
00:00]} 8. Qb3 {[%emt 0:00:23]} a6 {[%emt 0:04:51]} 9. Bg5 {[%emt 0:04:31]
White is slightly better.} (9. Qxb7 $2 Na5 10. Qxa8 Qxa8 $19) 9... Rb8 {
[%emt 0:08:04]} 10. Nh4 {[%emt 0:06:17] [#]} Bg4 $146 {[%emt 0:07:55]} ({
Predecessor:} 10... Bg6 11. Nxg6 hxg6 12. Nb1 Be7 13. Nd2 Ng4 14. Bxe7 Nxe7 15.
h3 Nf6 16. Rfe1 c6 17. e4 Qc7 18. Rad1 {1-0 (18) Frost,L (2184)-Phillips,P 
(1842) IECG email 2000}) 11. f3 {[%emt 0:17:28] aiming for Bxf6.} Bh5 {[%emt 0:
00:00]} 12. e4 {[%emt 0:00:36]} Be7 {[%emt 0:07:28]} 13. Rae1 {[%emt 0:15:08]
Black must now prevent Bxf6.} O-O {[%emt 0:04:08]} 14. g4 {[%emt 0:25:26]} h6 {
[%emt 0:14:43]} 15. Bc1 {[%emt 0:02:10]} Nd7 {[%emt 0:08:27]} 16. Nf5 {[%emt 0:
00:00]} exf5 {[%emt 0:02:15]} 17. gxh5 {[%emt 0:00:39]} dxe4 {[%emt 0:21:40]}
18. fxe4 {[%emt 0:00:07]} fxe4 {[%emt 0:00:18]} 19. Rxe4 {[%emt 0:02:02][%cal
Ye1e4,Ye4f4,Yf4f5]} Bg5 {[%emt 0:01:36] Against Ref4} 20. Bxg5 {[%emt 0:03:30]}
Qxg5 {[%emt 0:00:12]} 21. Ref4 {[%emt 0:01:16][%cal Rf4f7]} Nf6 {[%emt 0:04:24]
} 22. Rf5 {[%emt 0:00:42]} Qh4 {[%emt 0:01:20]} 23. Nc4 {[%emt 0:01:28]} Ne7 {
[%emt 0:01:55]} (23... Ng4 24. h3 Nf6 25. Ne5 $16) 24. R5f4 {[%emt 0:02:25]}
Qxh5 {[%emt 0:01:12]} 25. Ne5 {[%emt 0:00:05]} Rbd8 {[%emt 0:01:12]} 26. Qxb7 {
[%emt 0:04:56]} Ned5 {[%emt 0:00:08]} 27. Rf5 {[%emt 0:01:18]} Qe2 {[%emt 0:00:
08] [#]} (27... Qh4 $1 $11) 28. R5f2 $1 $16 {[%emt 0:00:41] Active counter
play!} Qe3 {[%emt 0:00:32]} 29. Qxa6 {[%emt 0:00:00]} c5 {[%emt 0:00:29]} 30.
Nc4 {[%emt 0:01:33]} (30. Kh1 $14) 30... Qg5 $11 {[%emt 0:00:40]} 31. Rf5 {
[%emt 0:01:16]} (31. dxc5 Ng4 32. Rf3 (32. Rd2 $2 Nde3 $19) 32... Nde3 33. Nxe3
Nxe3 $11) 31... Qh4 {[%emt 0:00:07]} 32. Qb7 $2 {[%emt 0:01:35] [#]} (32. dxc5
{[#]} Ng4 $1 33. h3 Nge3 34. Rxd5 (34. Nxe3 Nxe3 35. R5f2 Nxf1 $17) 34... Nxf1
35. Rxd8 (35. Kxf1 $2 Rfe8 $19) 35... Rxd8 $17) (32. R5f3 $1 $11) 32... cxd4 $1
$19 {[%emt 0:01:02]} 33. Bxd5 {[%emt 0:00:25]} Nxd5 {[%emt 0:01:12]} 34. Rxd5 {
[%emt 0:01:13]} Qg4+ {[%emt 0:00:14]} 35. Kf2 {[%emt 0:00:09] Hoping for Rxd8.}
Qf4+ {[%emt 0:00:20]} (35... dxc3 $19 36. Ne3 Qh3 37. Rxd8 Rxd8) 36. Kg1 $17 {
[%emt 0:00:18]} Qg4+ {[%emt 0:00:08]} 37. Kf2 {[%emt 0:00:04]} Rde8 {[%emt 0:
02:43]} (37... dxc3 $17 38. Ne3 Qh3 39. Rxd8 Rxd8) 38. Re5 $11 {[%emt 0:01:14]
Threatens to win with Qf3.} dxc3 $40 {[%emt 0:00:00] White needs to defend
precisely.} 39. Qb5 $2 {[%emt 0:00:49]} ({Avoid the trap} 39. Qd5 $2 c2 40.
Rxe8 Rxe8 $19) (39. Rxe8 $1 $11 Rxe8 40. Ne5 Qd4+ 41. Kg2 Rxe5 42. Qxf7+ Kh7
43. bxc3 Qxc3 44. Kh1) 39... Rb8 {[%emt 0:00:32] Deflection} 40. Qd5 {[%emt 0:
00:30]} cxb2 {[%emt 0:02:52]} 41. Rb1 {[%emt 0:02:19]} Qf4+ {[%emt 0:16:59]}
42. Kg2 {[%emt 0:02:06]} Qg4+ {[%emt 0:06:23]} 43. Kf2 $1 {[%emt 0:00:07]} ({
Wrong is} 43. Kh1 $2 Rfc8 44. Qe4 (44. Re4 $2 Qf3+ 45. Kg1 Kh7 $19) 44... Rxc4
45. Qxg4 Rxg4 $19) 43... Qf4+ {[%emt 0:00:13] Black has strong compensation.}
44. Kg2 $1 {[%emt 0:00:08]} Qg4+ $2 {[%emt 0:00:15] Weighted Error Value:
White=0.22 (precise) /Black=0.31} (44... Rfd8 $19 45. Qe4 Qc1) 1/2-1/2

[Event "44th Chess Olympiad Open 2022"]
[Site "Chennai"]
[Date "2022.08.01"]
[Round "4.14"]
[White "Murphy, Conor E"]
[Black "Bluebaum, Matthias"]
[Result "1-0"]
[WhiteElo "2404"]
[BlackElo "2673"]
[Annotator "TA"]
[PlyCount "117"]
[EventDate "2022.??.??"]
[TimeControl "60"]

{[%evp 10,117,26,28,23,24,25,25,25,22,20,25,39,50,54,36,52,46,31,38,36,31,38,
39,40,37,32,50,60,22,76,68,68,51,44,106,104,111,251,235,250,196,238,206,218,
125,253,55,88,91,110,119,118,99,116,116,134,124,133,120,113,129,159,149,204,
199,434,416,614,580,583,418,271,0,249,224,529,521,474,454,347,231,559,532,532,
524,480,478,6106,6106,29967,29968,29968,29969,29969,29969,29965,29965,29962,
29964,29952,29937,12575,12067,8281,7311,5965,743,723,660]} 1. e4 {[%emt 0:00:
00] ChessBase II} c6 {[%emt 0:00:13]} 2. Nf3 {[%emt 0:00:18]} d5 {[%emt 0:00:
00]} 3. Nc3 {[%emt 0:00:11]} dxe4 {[%emt 0:01:09]} 4. Nxe4 {[%emt 0:00:11]} Nf6
{[%emt 0:00:04]} 5. Qe2 {[%emt 0:00:16]} Nxe4 {[%emt 0:00:11]} 6. Qxe4 {
[%emt 0:00:06]} Nd7 {[%emt 0:00:04] B11: Caro-Kann: Two Knights Variation.} 7.
Bc4 {[%emt 0:01:03]} Nf6 {[%emt 0:00:10] [#]} 8. Ne5 $1 {[%emt 0:00:09][%csl
Ge5][%cal Rc4f7]} e6 {[%emt 0:00:08] White has an edge.} 9. Qe2 {[%emt 0:00:05]
} b5 {[%emt 0:00:27]} 10. Bd3 {[%emt 0:01:15]} (10. Nxc6 Qc7 11. Bd3 (11. Bxb5
a6 $17) 11... a6 $15) 10... Qc7 {[%emt 0:01:00]} 11. a4 {[%emt 0:01:48]} Bd6 {
[%emt 0:01:00] [#]} 12. Nxc6 {[%emt 0:01:44]} b4 {[%emt 0:00:46]} (12... Qxc6
$2 13. Bxb5 Qd7 14. Bxd7+ $18) 13. Nd4 $1 {[%emt 0:00:23]} a6 {[%emt 0:00:05]
Against Nb5} 14. Nf5 $1 {[%emt 0:00:31]} Be5 {[%emt 0:04:06]} 15. Nxg7+ {
[%emt 0:00:38]} Kf8 {[%emt 0:00:04]} 16. Nh5 {[%emt 0:00:07]} Nxh5 {[%emt 0:00:
00]} 17. Qxh5 {[%emt 0:00:06]} Bb7 {[%emt 0:00:02] [#] Inhibits Be4.} 18. Qh4
$146 {[%emt 0:00:21]} ({Predecessor:} 18. Be2 Bxg2 19. Rg1 Rg8 20. d4 Bxh2 21.
Qh6+ Ke8 22. Qxh7 Ke7 23. Bh5 Raf8 24. Bxf7 {½-½ (43) Ragger,M (2682)
-Donchenko,A (2595) Brest 2019 CBM 190 Extra [ChessBase II]}) 18... Bxg2 {
[%emt 0:32:49]} 19. Rg1 $36 {[%emt 0:05:16] White is more active.} (19. Qxb4+
$2 Bd6 20. Qc3 (20. Qd4 $2 e5 $19) 20... Qxc3 21. dxc3 Bxh1 $19) 19... Rg8 {
[%emt 0:02:32]} (19... Bd5 $11) 20. Bxh7 $16 {[%emt 0:24:14][%cal Yd3h7,Yh7g8,
Yg8f7]} (20. Qxh7 $2 Rh8 21. Qxh8+ Bxh8 22. Rxg2 Rd8 $19) (20. Qxb4+ $6 Bd6 21.
Qc3 Qxc3 22. bxc3 Bxh2 23. Ba3+ Ke8 24. Bxh7 Rg7 25. Rxg2 Rxg2 $11) 20... Bxh2
{[%emt 0:04:42] [#]} 21. d4 {[%emt 0:08:06] Prevents Qe5+.} Bxg1 {[%emt 0:05:
33]} 22. Bh6+ {[%emt 0:02:08]} Ke8 {[%emt 0:01:11]} 23. Bxg8 {[%emt 0:00:53]}
Qxc2 {[%emt 0:08:44]} (23... Qh2 $16 24. Qf6 Bxf2+ 25. Qxf2 Qh1+ 26. Ke2 Qh5+
27. Kd3 (27. Ke1 Qh1+ 28. Ke2 Qh5+ 29. Kd3 Qg6+ 30. Kc4 Bd5+ 31. Kxb4 e5 $11)
27... Qg6+ 28. Kc4 Bd5+ 29. Kxb4 e5) 24. Qf6 $1 $18 {[%emt 0:00:00]} Qf5 {
[%emt 0:11:45]} 25. Bxf7+ $1 {[%emt 0:02:14]} Kd7 {[%emt 0:00:01]} 26. Qxf5 {
[%emt 0:01:26] Really sharp!} exf5 {[%emt 0:00:02]} 27. Bf4 {[%emt 0:00:00]} (
27. d5 $1 $18 {aiming for Be6+.} Bh2 28. Rc1) 27... Rf8 {[%emt 0:00:00]} (27...
Rh8 $16) 28. Ke2 $2 {[%emt 0:04:18]} Rxf7 {[%emt 0:02:38]} 29. Rxg1 $14 {
[%emt 0:00:06] Endgame KRB-KRB} Rg7 {[%emt 0:05:44][%cal Yg2f3] ...Bf3+! is
the strong threat.} 30. Ke3 {[%emt 0:01:43] Inhibits Bf3. Hoping for f3.} Rg4 {
[%emt 0:02:38]} 31. Rc1 {[%emt 0:01:25]} Bc6 {[%emt 0:01:55]} 32. a5 $1 {
[%emt 0:02:36]} Rh4 {[%emt 0:02:38]} 33. Rc5 {[%emt 0:07:45]} Rh1 {[%emt 0:01:
17]} 34. d5 {[%emt 0:04:37]} Bb5 {[%emt 0:03:25]} 35. Be5 {[%emt 0:00:00]} Rh4
{[%emt 0:03:05]} 36. Rc7+ {[%emt 0:01:22]} Kd8 {[%emt 0:00:00]} (36... Ke8 $16)
37. f3 $18 {[%emt 0:00:11]} Rh1 $2 {[%emt 0:03:03]} (37... Rc4 {keeps fighting.
} 38. Rf7 Bd7) 38. d6 {[%emt 0:00:33] And now Bf6+ would win.} Rd1 {[%emt 0:00:
26]} (38... Re1+ $142 39. Kf4 Bd7) 39. Kf4 {[%emt 0:00:48]} Rd3 {[%emt 0:00:44]
} 40. Bf6+ {[%emt 0:01:36]} (40. Kg5 $142 Bd7 41. f4) 40... Ke8 {[%emt 0:00:01]
[#]} 41. Be5 {[%emt 0:02:54]} (41. Kxf5 Rxd6 42. Re7+ Kf8 $16) (41. Ke5 $1 $18
{[%cal Re5e6]}) 41... Bd7 {[%emt 0:06:09]} (41... Kd8 $1 $11 42. Ra7 (42. Kxf5
Rxf3+ 43. Ke6 Re3 $18) 42... Ke8 43. Re7+ (43. Kxf5 Rxf3+ 44. Bf4 Rd3 $18)
43... Kd8) 42. Ra7 {[%emt 0:05:59] Black must now prevent Kg5.} Bb5 $2 {
[%emt 0:00:10]} (42... Rd5 {is a better chance.} 43. Rxa6 Kf7) 43. Re7+ {
[%emt 0:01:13]} Kd8 {[%emt 0:01:05]} 44. Rg7 {[%emt 0:02:57]} Ke8 {[%emt 0:00:
00]} 45. Rg3 {[%emt 0:16:21]} (45. Kxf5 Rxf3+ 46. Bf4 Bd7+ 47. Ke5 Rf2 $16)
45... Bd7 $2 {[%emt 0:05:45]} (45... Bc6 {is tougher.} 46. Rg8+ (46. Kxf5 Rxf3+
47. Rxf3 Bxf3 $14) 46... Kf7 47. Rg7+ Ke6 48. Re7+ Kd5) 46. Rg8+ {[%emt 0:00:
00]} Kf7 {[%emt 0:00:00]} 47. Rg7+ {[%emt 0:00:21]} Ke8 {[%emt 0:00:03] [#]}
48. Kg5 $1 {[%emt 0:01:00]} Rxf3 {[%emt 0:01:35]} (48... f4 $142 49. Kf6 (49.
Bxf4 Rxf3 50. Re7+ Kd8 $16) (49. Kxf4 Rd5 $18) 49... Bb5 50. Re7+ Kd8) 49. Kf6
{[%emt 0:00:27][%cal Rg7g8]} Bb5 {[%emt 0:01:34]} 50. Bd4 {[%emt 0:00:55]} Kd8
{[%emt 0:03:12]} 51. Bb6+ {[%emt 0:00:10]} Kc8 {[%emt 0:00:07]} 52. Rc7+ {
[%emt 0:00:26]} Kb8 {[%emt 0:00:01]} 53. d7 {[%emt 0:00:15]} Bxd7 {[%emt 0:00:
00]} 54. Rxd7 {[%emt 0:00:01] KRB-KR} Rb3 {[%emt 0:00:28]} 55. Rd2 {[%emt 0:00:
00]} Kb7 {[%emt 0:02:33]} 56. Rc2 {[%emt 0:00:02] White is clearly winning.}
Rf3 {[%emt 0:02:18]} 57. Ke5 {[%emt 0:00:29] Intending Rc7+ and mate.} f4 {
[%emt 0:00:36]} 58. Kd5 {[%emt 0:01:18]} (58. Rc7+ $142 Kb8 59. Rf7) 58... Rd3+
{[%emt 0:01:11]} 59. Kc4 {[%emt 0:01:37] Weighted Error Value: White=0.21 
(precise) /Black=0.53} 1-0

[Event "44th Chess Olympiad Open 2022"]
[Site "Chennai"]
[Date "2022.08.01"]
[Round "4.14"]
[White "Heidenfeld, Mark"]
[Black "Kollars, Dmitrij"]
[Result "0-1"]
[WhiteElo "2355"]
[BlackElo "2648"]
[Annotator "TA"]
[PlyCount "76"]
[EventDate "2022.??.??"]
[TimeControl "60"]

{[%evp 12,76,0,0,0,0,0,-20,-8,-18,-17,-20,-14,-48,-49,-61,-59,-109,-106,-100,
-100,-124,-116,-120,-99,-139,-148,-139,-132,-133,-135,-143,-133,-133,-134,-127,
-129,-114,-111,-109,-72,-89,-70,-79,-64,-64,-73,-84,-93,-135,-128,-130,-112,
-117,-110,-116,-115,-110,-115,-111,-111,-108,-164,-268,-262,-289,-276]} 1. e4 {
[%emt 0:00:06]} e5 {[%emt 0:00:15]} 2. Nf3 {[%emt 0:00:14]} Nc6 {[%emt 0:00:05]
} 3. Bb5 {[%emt 0:00:31]} a6 {[%emt 0:00:26]} 4. Bxc6 {[%emt 0:00:24]} dxc6 {
[%emt 0:00:06]} 5. O-O {[%emt 0:00:34]} Qd6 {[%emt 0:00:18]} 6. d3 {[%emt 0:00:
00]} Ne7 {[%emt 0:00:31]} 7. Nbd2 {[%emt 0:01:03] Strongly threatening Nc4.} f6
{[%emt 0:00:35] C68: Ruy Lopez: Exchange Variation, sidelines.} 8. Nc4 {
[%emt 0:01:13]} Qe6 {[%emt 0:00:13]} 9. Qe2 {[%emt 0:01:02]} c5 {[%emt 0:00:26]
The position is equal.} 10. c3 {[%emt 0:02:19] [#]} Nc6 $146 {[%emt 0:03:19]
Against d4} ({Predecessor:} 10... g5 11. d4 g4 12. Nh4 cxd4 13. cxd4 exd4 14.
Bf4 b5 15. Nd2 c5 16. Rfe1 Ng6 {0-1 (37) Werner,D-Haubt,G Doernigheim 1974})
11. a3 {[%emt 0:14:43]} a5 {[%emt 0:03:41] Inhibits b4.} 12. a4 {[%emt 0:04:26]
} b6 {[%emt 0:05:35]} 13. Nh4 {[%emt 0:02:37]} Qg4 {[%emt 0:02:37]} 14. Qxg4 {
[%emt 0:01:40]} (14. Nf3 $15) 14... Bxg4 $17 {[%emt 0:00:06]} 15. f3 {[%emt 0:
00:00]} Be6 {[%emt 0:00:16] White must now prevent ...0-0-0.} 16. Be3 {[%emt 0:
00:00]} O-O-O {[%emt 0:03:08]} 17. Rfd1 {[%emt 0:00:13]} Rd7 {[%emt 0:11:51]}
18. g3 {[%emt 0:05:53]} Be7 {[%emt 0:11:33]} 19. Rd2 {[%emt 0:01:06]} g6 {
[%emt 0:01:33][%cal Yg7g6,Yg6f5]} 20. Ng2 {[%emt 0:04:57][%cal Yh4g2,Yg2e1,
Ye1f3]} f5 {[%emt 0:01:29]} 21. Ne1 {[%emt 0:02:58]} Rf8 {[%emt 0:06:09] [#]
Threatens to win with ...f4.} 22. exf5 {[%emt 0:11:45]} gxf5 {[%emt 0:03:48]
aiming for ...f4.} ({Worse is} 22... Bxf5 23. h4 $15) ({Stronger than} 22...
Rxf5 23. Re2 $15) 23. Re2 {[%emt 0:18:28][%cal Yc4e5]} Bf6 {[%emt 0:03:47]} 24.
Nd2 {[%emt 0:05:19]} h5 {[%emt 0:02:06]} 25. f4 {[%emt 0:00:00]} Bd5 {[%emt 0:
01:22] Black is more active.} 26. Nef3 {[%emt 0:03:41]} exf4 {[%emt 0:13:46]} (
26... Rg8 {keeps more tension.} 27. Kf2 h4 28. gxh4 Rh8) 27. Bxf4 {[%emt 0:00:
09]} Bf7 {[%emt 0:00:06] A strong pair of Bishops.} 28. Re3 {[%emt 0:01:42]}
Rfd8 {[%emt 0:02:46]} 29. Ne1 {[%emt 0:01:16]} Ne7 {[%emt 0:00:32]} 30. Nc4 {
[%emt 0:02:09]} Ng6 {[%emt 0:06:29]} 31. Ne5 {[%emt 0:00:00] [#]} Bxe5 {
[%emt 0:01:02]} 32. Bxe5 {[%emt 0:00:07]} Re8 {[%emt 0:00:01]} 33. Bf4 {
[%emt 0:00:16]} Nxf4 {[%emt 0:00:31]} 34. Rxe8+ {[%emt 0:00:05]} Bxe8 {[%emt 0:
00:02]} 35. gxf4 {[%emt 0:00:06]} Rg7+ {[%emt 0:00:16]} 36. Kf2 {[%emt 0:00:12]
} Rg4 {[%emt 0:01:36]} 37. Ng2 {[%emt 0:02:45]} (37. Ke3 $142) 37... Bc6 $19 {
[%emt 0:00:23]} 38. Ne3 {[%emt 0:00:08]} Rxf4+ {[%emt 0:00:06] Weighted Error
Value: White=0.12 (very precise) /Black=0.04 (flawless)} 0-1

[Event "44th Chess Olympiad Open 2022"]
[Site "Chennai"]
[Date "2022.08.01"]
[Round "4.15"]
[White "Brkic, Ante"]
[Black "Nielsen, Hogni Egilstoft"]
[Result "1-0"]
[WhiteElo "2611"]
[BlackElo "2414"]
[Annotator "TA"]
[PlyCount "65"]
[EventDate "2022.??.??"]
[TimeControl "60"]

{[%evp 18,65,18,16,23,-8,-20,-15,68,61,69,36,52,39,58,36,30,11,59,38,70,59,66,
45,40,44,41,36,60,53,104,115,168,61,74,78,133,135,190,191,199,199,332,332,332,
333,333,337,337,337]} 1. e4 {[%emt 0:00:03]} e5 {[%emt 0:00:23]} 2. Nf3 {
[%emt 0:00:07]} Nc6 {[%emt 0:00:13]} 3. Bb5 {[%emt 0:00:05]} Nf6 {[%emt 0:00:
00]} 4. O-O {[%emt 0:05:37][%cal Yh1f1,Yf1e1,Ye1e5]} Nxe4 {[%emt 0:00:00]} 5.
Re1 {[%emt 0:03:12]} Nd6 {[%emt 0:01:12]} 6. Nxe5 {[%emt 0:00:09]} Be7 {
[%emt 0:00:31]} 7. Bf1 {[%emt 0:00:08]} Nxe5 {[%emt 0:01:35]} 8. Rxe5 {[%emt 0:
00:09]} O-O {[%emt 0:00:24]} 9. d4 {[%emt 0:00:26]} Bf6 {[%emt 0:02:33]} 10.
Re1 {[%emt 0:00:09]} Re8 {[%emt 0:06:19] C67: Ruy Lopez: Berlin Defence: 4 0-0
Nxe4.} 11. Nc3 {[%emt 0:00:56]} Rxe1 {[%emt 0:41:24]} 12. Qxe1 {[%emt 0:00:00]
[#]} Ne8 $146 {[%emt 0:00:29]} ({Better is} 12... Bxd4 $11 13. Bd3 Bxc3 14.
Qxc3 b6) ({Predecessor:} 12... Bxd4 13. Bf4 Ne8 14. Nd5 d6 15. Bg5 f6 16. Bh4
g5 17. Qe4 Bxb2 18. Rb1 Be5 {0-1 (29) Caruana,F (2820)-So,W (2770) Paris 2021})
13. Nd5 $14 {[%emt 0:13:02] White is more active.} d6 {[%emt 0:00:47]} 14.
Nxf6+ {[%emt 0:05:06]} Nxf6 {[%emt 0:00:12]} 15. Bd3 {[%emt 0:00:06]} h6 {
[%emt 0:16:28]} 16. f3 {[%emt 0:03:49]} Be6 {[%emt 0:07:11]} 17. Qh4 {[%emt 0:
00:00][%cal Yc1h6] Black should prevent Bxh6!} c6 {[%emt 0:05:37]} (17... c5
$11) 18. Bd2 {[%emt 0:02:30]} Nd5 {[%emt 0:00:16]} 19. Qxd8+ {[%emt 0:24:57]}
Rxd8 {[%emt 0:00:02]} 20. a4 {[%emt 0:00:08]} Ne7 {[%emt 0:03:18]} 21. c4 {
[%emt 0:06:13]} Bf5 {[%emt 0:05:35]} 22. Bf1 {[%emt 0:00:37]} Bc2 {[%emt 0:00:
00]} 23. a5 {[%emt 0:08:10]} Nf5 {[%emt 0:02:27]} (23... h5 $14) 24. Rc1 $1 $16
{[%emt 0:00:39]} Ba4 {[%emt 0:00:11]} (24... Nxd4 $2 25. Bc3 $18) (24... Bb3
$16) 25. Bc3 {[%emt 0:03:12]} (25. b3 $1 $18 {[%cal Rb3a4]}) 25... c5 {[%emt 0:
00:00] [#]} 26. d5 $1 {[%emt 0:01:29]} Ne3 {[%emt 0:01:33]} (26... Bb3 $142)
27. Bd3 {[%emt 0:00:50]} Nd1 {[%emt 0:00:00] [#]} (27... f5 $16 {is a better
defense.}) 28. Bd2 $1 $18 {[%emt 0:01:31][%cal Yb2b3] aiming for b3!} Nxb2 {
[%emt 0:00:00]} 29. Bf1 {[%emt 0:00:01] Rb1 is the strong threat.} b6 {[%emt 0:
00:00]} (29... Bb3 $142 30. Bf4 g5) 30. Rb1 {[%emt 0:01:50] White has a
decisive advantage.} Nxc4 {[%emt 0:00:30]} 31. Bxc4 {[%emt 0:00:07]} b5 {
[%emt 0:00:07]} 32. Bxb5 {[%emt 0:00:23]} Rb8 {[%emt 0:00:10]} 33. Bd3 {
[%emt 0:00:07] Weighted Error Value: White=0.12 (very precise) /Black=0.31} ({
Less strong is} 33. Bxa4 Rxb1+ 34. Kf2 Ra1 $14) 1-0

[Event "44th Chess Olympiad Open 2022"]
[Site "Chennai"]
[Date "2022.08.01"]
[Round "4.15"]
[White "Bosiocic, Marin"]
[Black "Apol, Luitjen Akselsson"]
[Result "1-0"]
[WhiteElo "2549"]
[BlackElo "2289"]
[Annotator "TA"]
[PlyCount "65"]
[EventDate "2022.??.??"]
[TimeControl "60"]

{[%evp 15,65,-6,0,0,13,0,43,42,53,30,47,15,51,52,44,42,65,44,58,39,70,64,231,
209,185,146,121,87,128,79,89,79,79,73,130,112,369,370,320,276,651,675,699,681,
960,954,1280,1277,1788,1026,1778,1381]} 1. Nf3 {[%emt 0:00:12]} Nf6 {[%emt 0:
00:00]} 2. c4 {[%emt 0:00:42]} g6 {[%emt 0:00:42]} 3. b3 {[%emt 0:00:17]} Bg7 {
[%emt 0:02:08]} 4. Bb2 {[%emt 0:00:33]} O-O {[%emt 0:00:57]} 5. g3 {[%emt 0:00:
00]} d6 {[%emt 0:01:49]} 6. Bg2 {[%emt 0:00:11]} e5 {[%emt 0:02:50]} 7. O-O {
[%emt 0:00:48]} Re8 {[%emt 0:08:09]} 8. d3 {[%emt 0:00:35]} c6 {[%emt 0:03:38]}
9. Qc2 {[%emt 0:02:46] A15: English Opening: 1...Nf6.} Bf5 {[%emt 0:23:06] [#]}
10. h3 $146 {[%emt 0:05:22]} ({Predecessor:} 10. e4 Bg4 11. h3 Bxf3 12. Bxf3 c5
13. Nc3 Nc6 14. Bg2 Bh6 15. Rab1 Nd7 16. f4 {1-0 (43) Schmittdiel,E (2505)
-Wallnoefer,H (1830) Wattens 1999}) 10... Nbd7 {[%emt 0:07:46]} 11. e4 {
[%emt 0:09:16] White is slightly better.} Be6 {[%emt 0:00:29]} 12. Nc3 {
[%emt 0:00:13]} Nf8 {[%emt 0:09:30]} 13. Rad1 {[%emt 0:06:26]} Qc7 {[%emt 0:00:
00]} 14. d4 {[%emt 0:03:08]} Rad8 {[%emt 0:02:11]} 15. Rd2 {[%emt 0:10:18]} a6
{[%emt 0:05:46]} 16. Rfd1 {[%emt 0:03:07]} (16. Nd1 $5 {[%cal Rd4e5]}) 16...
Nh5 {[%emt 0:00:53]} 17. a4 {[%emt 0:23:30]} b5 {[%emt 0:01:41]} 18. axb5 {
[%emt 0:01:35]} cxb5 {[%emt 0:04:04] [#]} ({Better is} 18... axb5 $14 19. dxe5
(19. cxb5 cxb5 20. dxe5 dxe5 $16) 19... dxe5) 19. dxe5 $18 {[%emt 0:05:39]} ({
Not} 19. cxb5 axb5 20. dxe5 dxe5 $16) 19... dxe5 {[%emt 0:01:09]} 20. Nd5 {
[%emt 0:00:21]} ({Don't do} 20. cxb5 $6 axb5 21. Nd5 Qxc2 22. Rxc2 Bxd5 23.
Rxd5 Rxd5 24. exd5 e4 $14) 20... Bxd5 {[%emt 0:04:37]} 21. cxd5 {[%emt 0:00:10]
} Qd6 {[%emt 0:00:51]} 22. Ra1 {[%emt 0:02:43]} (22. Rd3 $142) 22... Rc8 $16 {
[%emt 0:00:52]} 23. Qd3 {[%emt 0:01:23]} Nd7 {[%emt 0:00:43]} 24. Rc2 {[%emt 0:
00:00]} Bh6 {[%emt 0:02:36]} (24... Rxc2 $142 25. Qxc2 Qc5) 25. h4 {[%emt 0:00:
00]} Qb6 $2 {[%emt 0:02:18]} (25... Nhf6 $16) 26. Rxc8 $18 {[%emt 0:00:00]}
Rxc8 {[%emt 0:00:01]} 27. Nxe5 {[%emt 0:01:09]} Nc5 {[%emt 0:01:24]} (27... Qf6
) 28. Qf3 {[%emt 0:02:56] White is clearly winning.} Rf8 {[%emt 0:00:00]} 29.
Nc6 {[%emt 0:02:19][%cal Rc6e7] [#]} Re8 {[%emt 0:00:32] Prevents Ne7+.} 30.
Bd4 {[%emt 0:00:21]} Bg7 {[%emt 0:00:26]} 31. e5 {[%emt 0:00:12][%cal Ye4e5,
Ye5f6]} f6 {[%emt 0:00:35]} 32. Rc1 {[%emt 0:00:27]} Bf8 {[%emt 0:00:30]} 33.
exf6 {[%emt 0:00:17] Weighted Error Value: White=0.14 (very precise) /Black=0.
67} 1-0